fUSD/lending_fUSD_20240327
["ID","MTS","AMOUNT","RATE_DAILY","PERIOD"]
[320704679,1711521064190,-1026.185319,0.00055342,120]
[320704680,1711521064199,-500.0,0.00055342,120]
[320704681,1711521064208,-500.0,0.00055342,120]
[320704682,1711521064218,-515.11681581,0.00055342,120]
[320704683,1711521064228,-1026.185319,0.00055342,120]
[320704684,1711521064238,-500.0,0.00055342,120]
[320704685,1711521064248,-1026.185319,0.00055342,120]
[320704686,1711521064258,-500.0,0.00055342,120]
[320704687,1711521064267,-240.53095,0.00055342,120]
[320704688,1711521064276,-240.53095,0.00055342,120]
[320704689,1711521064286,-1189.93,0.00055342,120]
[320704690,1711521064296,-533.13,0.00055342,120]
[320704691,1711521064305,-240.53095,0.00055342,120]
[320704692,1711521064315,-240.53095,0.00055342,120]
[320704693,1711521064325,-500.0,0.00055342,120]
[320704694,1711521064334,-428.74438921,0.00055342,120]
[320704695,1711521064344,-547.3072972,0.00055342,120]
[320704696,1711521064353,-546.39,0.00055342,120]
[320704697,1711521064362,-500.0,0.00055342,120]
[320704698,1711521064372,-819.27,0.00055342,120]
[320704699,1711521064381,-227.980814,0.00055342,120]
[320704700,1711521064392,-227.980814,0.00055342,120]
[320704701,1711521064401,-1374.56,0.00055342,120]
[320704702,1711521064457,-500.0,0.00055342,120]
[320704703,1711521064467,-1559.12,0.00055342,120]
[320704704,1711521064475,-227.980814,0.00055342,120]
[320704705,1711521064485,-227.980814,0.00055342,120]
[320704706,1711521064495,-151.0,0.00055342,120]
[320704707,1711521064504,-151.0,0.00055342,120]
[320704708,1711521064513,-151.0,0.00055342,120]
[320704709,1711521064522,-768.93,0.00055342,120]
[320704710,1711521064531,-918.12,0.00055342,120]
[320704711,1711521064540,-2296.54,0.00055342,120]
[320704712,1711521064549,-500.0,0.00055342,120]
[320704713,1711521064558,-3040.45,0.00055342,120]
[320704714,1711521064567,-507.35007243,0.00055342,120]
[320704715,1711521064577,-500.0,0.00055342,120]
[320704716,1711521064585,-1719.78,0.00055342,120]
[320704717,1711521064595,-550.92,0.00055342,120]
[320704718,1711521064604,-750.43,0.00055342,120]
[320704719,1711521064613,-547.06,0.00055342,120]
[320704720,1711521064622,-441.352056,0.00055342,120]
[320704721,1711521064631,-441.352056,0.00055342,120]
[320704722,1711521064640,-441.352056,0.00055342,120]
[320704723,1711521064649,-441.352056,0.00055342,120]
[320704724,1711521064658,-441.352056,0.00055342,120]
[320704725,1711521064668,-441.352056,0.00055342,120]
[320704726,1711521064677,-520.82,0.00055342,120]
[320704727,1711521064686,-151.0,0.00055342,120]
[320704728,1711521064695,-151.0,0.00055342,120]
[320704729,1711521064705,-151.0,0.00055342,120]
[320704730,1711521064714,-1545.96,0.00055342,120]
[320704731,1711521064723,-500.0,0.00055342,120]
[320704732,1711521064733,-500.0,0.00055342,120]
[320704733,1711521064742,-151.0,0.00055342,120]
[320704734,1711521064751,-288.807847,0.00055342,120]
[320704735,1711521064761,-931.8,0.00055342,120]
[320704736,1711521064770,-10185.17,0.00055342,120]
[320704737,1711521064779,-1071.27,0.00055342,120]
[320704738,1711521064788,-990.98,0.00055342,120]
[320704739,1711521064797,-940.74,0.00055342,120]
[320704740,1711521064809,-185.850586,0.00055342,120]
[320704741,1711521064818,-185.850586,0.00055342,120]
[320704742,1711521064828,-185.850586,0.00055342,120]
[320704743,1711521064837,-5619.72,0.00055342,120]
[320704744,1711521064847,-182.728196,0.00055342,120]
[320704745,1711521064856,-182.728196,0.00055342,120]
[320704746,1711521064865,-182.728196,0.00055342,120]
[320704747,1711521064874,-500.0,0.00055342,120]
[320704748,1711521064884,-185.850586,0.00055342,120]
[320704749,1711521064893,-185.850586,0.00055342,120]
[320704750,1711521064902,-185.850586,0.00055342,120]
[320704751,1711521064911,-182.728196,0.00055342,120]
[320704752,1711521064920,-182.728196,0.00055342,120]
[320704753,1711521064928,-182.728196,0.00055342,120]
[320704754,1711521064937,-7137.91,0.00055342,120]
[320704755,1711521064946,-1599.33,0.00055342,120]
[320704756,1711521064956,-500.0,0.00055342,120]
[320704757,1711521064965,-547.16,0.00055342,120]
[320704758,1711521064974,-500.0,0.00055342,120]
[320704759,1711521064984,-500.0,0.00055342,120]
[320704760,1711521064994,-500.0,0.00055342,120]
[320704761,1711521065003,-100860.25,0.00055342,120]
[320704762,1711521065012,-500.0,0.00055342,120]
[320704763,1711521065022,-18551.05,0.00055342,120]
[320704764,1711521065031,-1023.17,0.00055342,120]
[320704765,1711521065041,-1117.04,0.00055342,120]
[320704766,1711521065050,-500.0,0.00055342,120]
[320704767,1711521065059,-500.0,0.00055342,120]
[320704768,1711521065069,-500.0,0.00055342,120]
[320704769,1711521065080,-5584.94,0.00055342,120]
[320704770,1711521065089,-500.0,0.00055342,120]
[320704771,1711521065099,-2428.33,0.00055342,120]
[320704772,1711521065108,-507.82,0.00055342,120]
[320704773,1711521065118,-500.0,0.00055342,120]
[320704774,1711521065127,-1854.59,0.00055342,120]
[320704775,1711521065138,-1970.07,0.00055342,120]
[320704776,1711521065148,-625.84,0.00055342,120]
[320704777,1711521065157,-614.74,0.00055342,120]
[320704778,1711521065167,-1722.79,0.00055342,120]
[320704779,1711521065178,-1489.51,0.00055342,120]
[320704780,1711521065189,-500.0,0.00055342,120]
[320704781,1711521065199,-500.0,0.00055342,120]
[320704782,1711521065210,-1819.69,0.00055342,120]
[320704783,1711521065221,-151.0,0.00055342,120]
[320704784,1711521065231,-26680.58,0.00055342,120]
[320704785,1711521065243,-151.0,0.00055342,120]
[320704786,1711521065253,-2871.78,0.00055342,120]
[320704787,1711521065263,-500.0,0.00055342,120]
[320704788,1711521065273,-500.0,0.00055342,120]
[320704789,1711521065284,-151.0,0.00055342,120]
[320704790,1711521065294,-154.850818,0.00055342,120]
[320704791,1711521065304,-500.0,0.00055342,120]
[320704792,1711521065314,-2418.35,0.00055342,120]
[320704793,1711521065324,-151.0,0.00055342,120]
[320704794,1711521065335,-151.0,0.00055342,120]
[320704795,1711521065345,-500.0,0.00055342,120]
[320704796,1711521065355,-2546.69,0.00055342,120]
[320704797,1711521065365,-550.38,0.00055342,120]
[320704798,1711521065376,-2376.64,0.00055342,120]
[320704799,1711521065386,-23724.79,0.00055342,120]
[320704800,1711521065396,-478.69132212,0.00055342,120]
[320704801,1711521065407,-500.0,0.00055342,120]
[320704802,1711521065417,-828.99,0.00055342,120]
[320704803,1711521065427,-2174.96,0.00055342,120]
[320704804,1711521065437,-500.0,0.00055342,120]
[320704805,1711521065447,-5578.25,0.00055342,120]
[320704806,1711521065458,-2023.94,0.00055342,120]
[320704807,1711521065469,-3047.21,0.00055342,120]
[320704808,1711521065479,-1089.22,0.00055342,120]
[320704809,1711521065491,-3121.61,0.00055342,120]
[320704810,1711521065501,-566.27,0.00055342,120]
[320704811,1711521065511,-151.0,0.00055342,120]
[320704812,1711521065521,-500.0,0.00055342,120]
[320704813,1711521065532,-2145.53,0.00055342,120]
[320704814,1711521065541,-151.0,0.00055342,120]
[320704815,1711521065551,-2507.6,0.00055342,120]
[320704816,1711521065562,-2288.7,0.00055342,120]
[320704817,1711521065572,-946.85,0.00055342,120]
[320704818,1711521065582,-1932.44,0.00055342,120]
[320704819,1711521065592,-1660.12,0.00055342,120]
[320704820,1711521065601,-500.0,0.00055342,120]
[320704821,1711521065611,-1944.3,0.00055342,120]
[320704822,1711521065621,-500.0,0.00055342,120]
[320704823,1711521065632,-5988.2,0.00055342,120]
[320704824,1711521065642,-15214.99,0.00055342,120]
[320704825,1711521065652,-1421.51,0.00055342,120]
[320704826,1711521065663,-513.76,0.00055342,7]
[320704827,1711521065673,-1321.39,0.00055342,120]
[320704828,1711521065684,-763.2,0.00055342,120]
[320704829,1711521065695,-2708.62,0.00055342,120]
[320704830,1711521065706,-2882.01,0.00055342,120]
[320704831,1711521065716,-39037.22,0.00055342,120]
[320704832,1711521065727,-1088.68,0.00055342,120]
[320704833,1711521065739,-13102.81,0.00055342,120]
[320704834,1711521065749,-500.0,0.00055342,120]
[320704835,1711521065759,-5764.07,0.00055342,120]
[320704836,1711521065769,-61247.96,0.00055342,120]
[320704837,1711521065779,-2277.36,0.00055342,120]
[320704838,1711521065790,-5035.13,0.00055342,120]
[320704839,1711521065800,-500.0,0.00055342,120]
[320704840,1711521065813,-500.0,0.00055342,120]
[320704841,1711521065823,-500.0,0.00055342,120]
[320704842,1711521065833,-500.0,0.00055342,120]
[320704843,1711521065844,-4985.26,0.00055342,120]
[320704844,1711521065855,-1100.5,0.00055342,120]
[320704845,1711521065865,-500.0,0.00055342,120]
[320704846,1711521065876,-500.0,0.00055342,120]
[320704847,1711521065887,-500.0,0.00055342,120]
[320704848,1711521065897,-6245.09,0.00055342,120]
[320704849,1711521065908,-761.63,0.00055342,120]
[320704850,1711521065919,-785.53,0.00055342,120]
[320704851,1711521065929,-5640.33,0.00055342,120]
[320704852,1711521065940,-1859.18,0.00055342,120]
[320704853,1711521065950,-500.0,0.00055342,120]
[320704854,1711521065960,-1110.41,0.00055342,120]
[320704855,1711521065970,-1474.48,0.00055342,120]
[320704856,1711521065980,-151.0,0.00055342,120]
[320704857,1711521065992,-500.0,0.00055342,120]
[320704858,1711521066003,-151.0,0.00055342,120]
[320704859,1711521066013,-5210.65,0.00055342,120]
[320704860,1711521066023,-154.821465,0.00055342,120]
[320704861,1711521066034,-6092.35,0.00055342,120]
[320704862,1711521066044,-500.0,0.00055342,120]
[320704863,1711521066055,-10654.12,0.00055342,120]
[320704864,1711521066065,-863.6,0.00055342,120]
[320704865,1711521066075,-151.0,0.00055342,120]
[320704866,1711521066085,-11778.32,0.00055342,120]
[320704867,1711521066096,-5892.74,0.00055342,120]
[320704868,1711521066107,-151.0,0.00055342,120]
[320704869,1711521066117,-2552.4,0.00055342,120]
[320704870,1711521066128,-8707.98,0.00055342,120]
[320704871,1711521066138,-1030.12,0.00055342,120]
[320704872,1711521066148,-500.0,0.00055342,120]
[320704873,1711521066158,-11059.19,0.00055342,120]
[320704874,1711521066169,-527.48494551,0.00055342,120]
[320704875,1711521066179,-192.04226154,0.00055342,120]
[320704876,1711521066190,-7394.47,0.00055342,120]
[320704877,1711521066200,-1208.96,0.00055342,120]
[320704878,1711521066211,-4831.38,0.00055342,120]
[320704879,1711521066222,-5098.5,0.00055342,120]
[320704880,1711521066232,-1043.43,0.00055342,120]
[320704881,1711521066244,-151.0,0.00055342,120]
[320704882,1711521066254,-151.0,0.00055342,120]
[320704883,1711521066265,-569.17,0.00055342,120]
[320704884,1711521066275,-524.89157641,0.00055342,120]
[320704885,1711521066287,-17649.9,0.00055342,120]
[320704886,1711521066297,-500.0,0.00055342,120]
[320704887,1711521066308,-151.0,0.00055342,120]
[320704888,1711521066319,-192.940439,0.00055342,120]
[320704889,1711521066329,-1162.65,0.00055342,120]
[320704890,1711521066341,-413.57153355,0.00055342,120]
[320704891,1711521066356,-26501.87,0.00055342,120]
[320704892,1711521066369,-4072.42,0.00055342,120]
[320704893,1711521066384,-695.87,0.00055342,120]
[320704894,1711521066397,-6552.0,0.00055342,120]
[320704895,1711521066410,-21370.97,0.00055342,120]
[320704896,1711521066421,-2955.62,0.00055342,120]
[320704897,1711521066434,-6120.09,0.00055342,120]
[320704898,1711521066446,-2344.35,0.00055342,120]
[320704899,1711521066459,-1643.86,0.00055342,120]
[320704900,1711521066472,-151.0,0.00055342,120]
[320704901,1711521066486,-511.08,0.00055342,120]
[320704902,1711521066498,-151.0,0.00055342,120]
[320704903,1711521066511,-500.0,0.00055342,120]
[320704904,1711521066522,-2911.99,0.00055342,120]
[320704905,1711521066533,-279.83563043,0.00055342,120]
[320704906,1711521066546,-658.87,0.00055342,120]
[320704907,1711521066558,-2313.61,0.00055342,120]
[320704908,1711521066569,-562.4904538,0.00055342,120]
[320704909,1711521066582,-151.0,0.00055342,120]
[320704910,1711521066593,-151.0,0.00055342,120]
[320704911,1711521066606,-8548.94,0.00055342,120]
[320704912,1711521066618,-500.0,0.00055342,120]
[320704913,1711521066629,-500.0,0.00055342,120]
[320704914,1711521066643,-266.8341305,0.00055342,120]
[320704915,1711521066656,-650.28,0.00055342,120]
[320704916,1711521066669,-1574.18,0.00055342,120]
[320704917,1711521066682,-1402.66,0.00055342,120]
[320704918,1711521066694,-6864.83,0.00055342,120]
[320704919,1711521066706,-500.0,0.00055342,120]
[320704920,1711521066717,-650.65,0.00055342,120]
[320704921,1711521066729,-9354.92,0.00055342,120]
[320704922,1711521066744,-180.407349,0.00055342,120]
[320704923,1711521066756,-5699.63,0.00055342,120]
[320704924,1711521066768,-2434.17,0.00055342,120]
[320704925,1711521066781,-13662.02,0.00055342,120]
[320704926,1711521066794,-500.0,0.00055342,120]
[320704927,1711521066808,-1317.25,0.00055342,120]
[320704928,1711521066820,-8973.4,0.00055342,120]
[320704929,1711521066830,-684.45,0.00055342,120]
[320704930,1711521066840,-1116.05,0.00055342,120]
[320704931,1711521066851,-3001.59,0.00055342,120]
[320704932,1711521066861,-500.0,0.00055342,120]
[320704933,1711521066873,-23036.16,0.00055342,120]
[320704934,1711521066886,-500.0,0.00055342,120]
[320704935,1711521066897,-876.17,0.00055342,120]
[320704936,1711521066910,-500.0,0.00055342,55]
[320704937,1711521066921,-2290.97,0.00055342,120]
[320704938,1711521066931,-24665.86,0.00055342,120]
[320704939,1711521066942,-500.0,0.00055342,120]
[320704940,1711521066953,-500.0,0.00055342,120]
[320704941,1711521066964,-6584.66,0.00055342,21]
[320704942,1711521066976,-227.870007,0.00055342,120]
[320704943,1711521066989,-1248.4,0.00055342,120]
[320704944,1711521067000,-227.870007,0.00055342,120]
[320704945,1711521067012,-2878.49,0.00055342,120]
[320704946,1711521067022,-909.95,0.00055342,120]
[320704947,1711521067033,-500.0,0.00055342,120]
[320704948,1711521067044,-227.870007,0.00055342,120]
[320704949,1711521067055,-227.870007,0.00055342,120]
[320704950,1711521067066,-1626.72,0.00055342,120]
[320704951,1711521067076,-1001.06,0.00055342,120]
[320704952,1711521067088,-613.04,0.00055342,120]
[320704953,1711521067100,-1024.11,0.00055342,120]
[320704954,1711521067111,-1141.61,0.00055342,120]
[320704955,1711521067123,-2824.98,0.00055342,120]
[320704956,1711521067134,-255.031446,0.00055342,120]
[320704957,1711521067145,-886.17,0.00055342,120]
[320704958,1711521067156,-255.031446,0.00055342,120]
[320704959,1711521067167,-500.0,0.00055342,120]
[320704960,1711521067179,-255.031446,0.00055342,120]
[320704961,1711521067190,-255.031446,0.00055342,120]
[320704962,1711521067202,-3067.74,0.00055342,120]
[320704963,1711521067213,-500.0,0.00055342,120]
[320704964,1711521067225,-678.71,0.00055342,120]
[320704965,1711521067239,-1413.85,0.00055342,120]
[320704966,1711521067251,-1116.0,0.00055342,120]
[320704967,1711521067262,-1774.49,0.00055342,120]
[320704968,1711521067274,-151.0,0.00055342,120]
[320704969,1711521067285,-152.719334,0.00055342,120]
[320704970,1711521067297,-10425.44,0.00055342,120]
[320704971,1711521067309,-500.0,0.00055342,120]
[320704972,1711521067323,-153.979257,0.00055342,120]
[320704973,1711521067334,-500.0,0.00055342,120]
[320704974,1711521067346,-7515.91,0.00055342,120]
[320704975,1711521067358,-500.0,0.00055342,120]
[320704976,1711521067370,-244.76175951,0.00055342,120]
[320704977,1711521067382,-693.92,0.00055342,120]
[320704978,1711521067395,-540.6808245,0.00055342,120]
[320704979,1711521067406,-151.0,0.00055342,120]
[320704980,1711521067418,-1165.92,0.00055342,120]
[320704981,1711521067430,-227.95035,0.00055342,120]
[320704982,1711521067441,-500.0,0.00055342,120]
[320704983,1711521067453,-500.0,0.00055342,120]
[320704984,1711521067465,-742.47,0.00055342,120]
[320704985,1711521067477,-12826.76,0.00055342,120]
[320704986,1711521067490,-500.0,0.00055342,120]
[320704987,1711521067502,-6519.32,0.00055342,120]
[320704988,1711521067513,-193.286613,0.00055342,30]
[320704989,1711521067525,-500.0,0.00055342,120]
[320704990,1711521067536,-749.07,0.00055342,120]
[320704991,1711521067547,-1248.06,0.00055342,120]
[320704992,1711521067558,-193.286613,0.00055342,30]
[320704993,1711521067570,-555.67,0.00055342,120]
[320704994,1711521067581,-1051.03,0.00055342,120]
[320704995,1711521067594,-950.92,0.00055342,120]
[320704996,1711521067605,-500.0,0.00055342,120]
[320704997,1711521067617,-2315.85,0.00055342,120]
[320704998,1711521067628,-458.05430212,0.00055342,120]
[320704999,1711521067640,-151.0,0.00055342,120]
[320705000,1711521067652,-500.0,0.00055342,120]
[320705001,1711521067664,-8992.19,0.00055342,120]
[320705002,1711521067675,-999.07,0.00055342,120]
[320705003,1711521067685,-507.40918722,0.00055342,120]
[320705004,1711521067697,-783.7,0.00055342,120]
[320705005,1711521067709,-500.0,0.00055342,120]
[320705006,1711521067720,-1594.18,0.00055342,120]
[320705007,1711521067732,-265.755102,0.00055342,120]
[320705008,1711521067743,-1904.62,0.00055342,120]
[320705009,1711521067754,-949.607586,0.00055342,120]
[320705010,1711521067765,-500.0,0.00055342,120]
[320705011,1711521067775,-500.0,0.00055342,120]
[320705012,1711521067786,-949.607586,0.00055342,120]
[320705013,1711521067798,-583.22886594,0.00055379,54]
[320705014,1711521067810,-151.032714,0.00055498,108]
[320705015,1711521067821,-250.0,0.000555,120]
[320705016,1711521067832,-12422.43187871,0.000555,120]
[320705017,1711521067843,-177.051292,0.000555,120]
[320705018,1711521067855,-177.051292,0.000555,120]
[320705019,1711521067866,-1026.185319,0.000555,120]
[320705020,1711521067877,-1026.185319,0.000555,120]
[320705021,1711521067888,-240.53095,0.000555,120]
[320705022,1711521067900,-240.53095,0.000555,120]
[320705023,1711521067910,-227.980814,0.000555,120]
[320705024,1711521067921,-227.980814,0.000555,120]
[320705025,1711521067932,-193.286613,0.000555,30]
[320705026,1711521067943,-193.286613,0.000555,30]
[320705027,1711521067953,-151.0,0.000555,120]
[320705028,1711521067964,-949.607586,0.000555,120]
[320705029,1711521067976,-949.607586,0.000555,120]
[320705030,1711521067988,-155.15974478,0.00055545,120]
[320705031,1711521067998,-306.48,0.000557,30]
[320705032,1711521068008,-388.48,0.000557,14]
[320705033,1711521068019,-200.0,0.00055771,120]
[320705034,1711521068029,-800.0,0.00055771,120]
[320705035,1711521068040,-500.0,0.00055771,120]
[320705036,1711521068050,-200.0,0.00055771,120]
[320705037,1711521068060,-150.0,0.00055793,60]
[320705038,1711521068071,-151.032714,0.00055798,110]
[320705039,1711521068082,-170.8,0.000558,30]
[320705040,1711521068091,-150.0,0.000558,22]
[320705041,1711521068102,-509.21,0.00055867,30]
[320705042,1711521068113,-156.63077705,0.00055887,2]
[320705043,1711521068123,-150.0,0.00055889,120]
[320705044,1711521068134,-500.0,0.0005589,120]
[320705045,1711521068145,-500.0,0.0005589,120]
[320705046,1711521068155,-258.14950286,0.0005589,120]
[320705047,1711521068166,-500.0,0.0005589,120]
[320705048,1711521068177,-500.0,0.0005589,120]
[320705049,1711521068188,-898.85,0.0005589,120]
[320705050,1711521068199,-555.68,0.0005589,120]
[320705051,1711521068210,-207.7923745,0.0005589,120]
[320705052,1711521068221,-500.0,0.0005589,120]
[320705053,1711521068231,-10000.0,0.0005589,2]
[320705054,1711521068243,-500.0,0.0005589,120]
[320705055,1711521068255,-500.0,0.0005589,120]
[320705056,1711521068266,-152.171155,0.0005589,120]
[320705057,1711521068276,-151.0,0.0005589,120]
[320705058,1711521068287,-151.0,0.0005589,120]
[320705059,1711521068298,-151.0,0.0005589,120]
[320705060,1711521068310,-151.0,0.0005589,120]
[320705061,1711521068322,-151.0,0.0005589,120]
[320705062,1711521068335,-183.131115,0.0005589,120]
[320705063,1711521068346,-500.0,0.0005589,120]
[320705064,1711521068357,-573.56,0.0005589,120]
[320705065,1711521068368,-500.0,0.0005589,120]
[320705066,1711521068379,-500.0,0.0005589,120]
[320705067,1711521068390,-500.0,0.0005589,120]
[320705068,1711521068402,-500.0,0.0005589,120]
[320705069,1711521068414,-500.0,0.0005589,120]
[320705070,1711521068426,-462.99622238,0.0005589,120]
[320705071,1711521068438,-500.0,0.0005589,120]
[320705072,1711521068452,-500.0,0.0005589,120]
[320705073,1711521068464,-1349.2,0.0005589,120]
[320705074,1711521068748,-151.0,0.0005589,120]
[320705075,1711521068759,-500.0,0.0005589,120]
[320705076,1711521068769,-151.0,0.0005589,120]
[320705077,1711521068779,-151.0,0.0005589,120]
[320705078,1711521068788,-500.0,0.0005589,120]
[320705079,1711521068798,-500.0,0.0005589,120]
[320705080,1711521068811,-500.0,0.0005589,120]
[320705081,1711521068821,-529.02762101,0.0005589,120]
[320705082,1711521068830,-500.0,0.0005589,120]
[320705083,1711521068840,-500.0,0.0005589,120]
[320705084,1711521068851,-500.0,0.0005589,120]
[320705085,1711521068861,-554.18,0.0005589,120]
[320705086,1711521068870,-500.0,0.0005589,120]
[320705087,1711521068879,-500.0,0.0005589,120]
[320705088,1711521068888,-152.39744,0.0005589,120]
[320705089,1711521068900,-500.0,0.0005589,120]
[320705090,1711521068910,-510.70002132,0.0005589,120]
[320705091,1711521068922,-620.25,0.0005589,120]
[320705092,1711521068932,-791.55,0.0005589,120]
[320705093,1711521068941,-500.0,0.0005589,120]
[320705094,1711521068950,-510.82619527,0.0005589,120]
[320705095,1711521068959,-151.0,0.0005589,120]
[320705096,1711521068968,-151.0,0.0005589,120]
[320705097,1711521068978,-151.0,0.0005589,120]
[320705098,1711521068990,-1084.11,0.0005589,120]
[320705099,1711521069000,-510.15,0.0005589,120]
[320705100,1711521069009,-598.78654911,0.0005589,120]
[320705101,1711521069018,-852.67,0.0005589,120]
[320705102,1711521069028,-592.4,0.0005589,120]
[320705103,1711521069038,-279.90530145,0.0005589,120]
[320705104,1711521069047,-151.0,0.0005589,120]
[320705105,1711521069057,-151.0,0.0005589,120]
[320705106,1711521069066,-151.0,0.0005589,120]
[320705107,1711521069075,-500.0,0.0005589,120]
[320705108,1711521069085,-525.44,0.0005589,120]
[320705109,1711521069093,-551.53,0.0005589,120]
[320705110,1711521069104,-500.0,0.0005589,120]
[320705111,1711521069114,-500.0,0.0005589,120]
[320705112,1711521069123,-171.3548,0.0005589,120]
[320705113,1711521069132,-171.3548,0.0005589,120]
[320705114,1711521069142,-171.3548,0.0005589,120]
[320705115,1711521069152,-510.19322637,0.0005589,120]
[320705116,1711521069162,-500.0,0.0005589,120]
[320705117,1711521069172,-171.3548,0.0005589,120]
[320705118,1711521069181,-171.3548,0.0005589,120]
[320705119,1711521069191,-171.3548,0.0005589,120]
[320705120,1711521069200,-500.0,0.0005589,120]
[320705121,1711521069209,-500.0,0.0005589,120]
[320705122,1711521069219,-500.0,0.0005589,120]
[320705123,1711521069228,-500.0,0.0005589,120]
[320705124,1711521069239,-151.0,0.0005589,120]
[320705125,1711521069249,-152.604602,0.0005589,120]
[320705126,1711521069259,-500.0,0.0005589,120]
[320705127,1711521069268,-500.0,0.0005589,120]
[320705128,1711521069277,-500.0,0.0005589,120]
[320705129,1711521069286,-500.0,0.0005589,120]
[320705130,1711521069296,-500.0,0.0005589,120]
[320705131,1711521069306,-500.0,0.0005589,120]
[320705132,1711521069315,-500.0,0.0005589,120]
[320705133,1711521069324,-500.0,0.0005589,120]
[320705134,1711521069334,-500.0,0.0005589,120]
[320705135,1711521069344,-500.0,0.0005589,120]
[320705136,1711521069353,-500.0,0.0005589,120]
[320705137,1711521069363,-500.0,0.0005589,120]
[320705138,1711521069372,-500.0,0.0005589,120]
[320705139,1711521069381,-500.0,0.0005589,120]
[320705140,1711521069390,-500.0,0.0005589,120]
[320705141,1711521069400,-500.0,0.0005589,120]
[320705142,1711521069409,-500.0,0.0005589,120]
[320705143,1711521069418,-500.0,0.0005589,120]
[320705144,1711521069428,-500.0,0.0005589,120]
[320705145,1711521069437,-539.77089015,0.0005589,120]
[320705146,1711521069447,-500.0,0.0005589,120]
[320705147,1711521069456,-157.477533,0.0005589,7]
[320705148,1711521069465,-157.477533,0.0005589,7]
[320705149,1711521069474,-500.0,0.0005589,120]
[320705150,1711521069485,-500.0,0.0005589,120]
[320705151,1711521069494,-157.477533,0.0005589,7]
[320705152,1711521069503,-157.477533,0.0005589,7]
[320705153,1711521069512,-500.0,0.0005589,120]
[320705154,1711521069522,-500.0,0.0005589,120]
[320705155,1711521069533,-207.543318,0.0005589,120]
[320705156,1711521069543,-207.543318,0.0005589,120]
[320705157,1711521069553,-207.543318,0.0005589,120]
[320705158,1711521069563,-207.543318,0.0005589,120]
[320705159,1711521069573,-714.93,0.0005589,120]
[320705160,1711521069583,-151.0,0.0005589,120]
[320705161,1711521069593,-151.0,0.0005589,120]
[320705162,1711521069602,-576.97,0.0005589,120]
[320705163,1711521069612,-500.0,0.0005589,120]
[320705164,1711521069623,-500.0,0.0005589,120]
[320705165,1711521069633,-500.0,0.0005589,120]
[320705166,1711521069642,-619.31,0.0005589,120]
[320705167,1711521069652,-880.5,0.0005589,120]
[320705168,1711521069662,-500.0,0.0005589,120]
[320705169,1711521069672,-500.0,0.0005589,2]
[320705170,1711521069681,-539.35,0.0005589,120]
[320705171,1711521069691,-500.0,0.0005589,120]
[320705172,1711521069702,-543.59,0.0005589,120]
[320705173,1711521069711,-151.0,0.0005589,120]
[320705174,1711521069721,-185.028057,0.0005589,120]
[320705175,1711521069730,-681.66,0.0005589,120]
[320705176,1711521069740,-500.0,0.0005589,120]
[320705177,1711521069750,-693.36,0.0005589,120]
[320705178,1711521069758,-500.0,0.0005589,120]